[Event "Titled Tuesday Blitz May 16 Early 2023"]
[White "Toncheva, Nadya"]
[Black "Visakh N R"]
[WhiteFideId "2924056"]
[BlackFideId "25012223"]
[WhiteElo "2101"]
[BlackElo "2466"]
[Result "1/2-1/2"]
[Round "01"]
[TimeControl "180+2"]
[Date "2023.05.16"]
[WhiteClock "0:01:00"]
[BlackClock "0:00:44"]

1. d4 {[%clk 0:02:59]}  Nf6 {[%clk 0:02:51]} 2. c4 {[%clk 0:02:58]}  e6 {[%clk 0:02:50]} 3. Nc3 {[%clk 0:02:58]}  Bb4 {[%clk 0:02:49]} 4. e3 {[%clk 0:02:58]}  b6 {[%clk 0:02:43]} 5. Ne2 {[%clk 0:02:58]}  c5 {[%clk 0:02:34]} 6. a3 {[%clk 0:02:57]}  Ba5 {[%clk 0:02:34]} 7. Rb1 {[%clk 0:02:52]}  Na6 {[%clk 0:02:33]} 8. Bd2 {[%clk 0:02:48]}  O-O {[%clk 0:02:31]} 9. Nf4 {[%clk 0:02:46]}  Bb7 {[%clk 0:02:23]} 10. Bd3 {[%clk 0:02:45]}  cxd4 {[%clk 0:02:20]} 11. exd4 {[%clk 0:02:44]}  Bxc3 {[%clk 0:02:20]} 12. Bxc3 {[%clk 0:02:45]}  Ne4 {[%clk 0:02:20]} 13. Qc2 {[%clk 0:02:32]}  f5 {[%clk 0:02:18]} 14. O-O {[%clk 0:02:32]}  Qg5 {[%clk 0:02:05]} 15. g3 {[%clk 0:02:19]}  Qh6 {[%clk 0:02:05]} 16. f3 {[%clk 0:02:15]}  Nxc3 {[%clk 0:01:51]} 17. Qxc3 {[%clk 0:02:16]}  Rae8 {[%clk 0:01:48]} 18. Rbe1 {[%clk 0:02:14]}  Nb8 {[%clk 0:01:47]} 19. d5 {[%clk 0:02:10]}  g5 {[%clk 0:01:45]} 20. Ng2 {[%clk 0:02:04]}  Qg7 {[%clk 0:01:38]} 21. Qxg7+ {[%clk 0:01:57]}  Kxg7 {[%clk 0:01:39]} 22. dxe6 {[%clk 0:01:54]}  dxe6 {[%clk 0:01:38]} 23. f4 {[%clk 0:01:47]}  g4 {[%clk 0:01:11]} 24. Re3 {[%clk 0:01:34]}  Kf6 {[%clk 0:01:04]} 25. Rfe1 {[%clk 0:01:34]}  Nd7 {[%clk 0:01:03]} 26. Nh4 {[%clk 0:01:30]}  Nc5 {[%clk 0:01:02]} 27. Bxf5 {[%clk 0:01:26]}  h5 {[%clk 0:00:53]} 28. Bg6 {[%clk 0:01:25]}  Re7 {[%clk 0:00:52]} 29. Re5 {[%clk 0:01:18]}  Rd8 {[%clk 0:00:48]} 30. Rxh5 {[%clk 0:01:16]}  Rd2 {[%clk 0:00:47]} 31. Rh6 {[%clk 0:01:10]}  Kg7 {[%clk 0:00:45]} 32. Rh7+ {[%clk 0:01:10]}  Kf6 {[%clk 0:00:46]} 33. Rh6 {[%clk 0:01:01]}  Kg7 {[%clk 0:00:44]} 34. Rh7+ {[%clk 0:01:00]}  Kf6 {[%clk 0:00:44]} 35. Rh6 {[%clk 0:01:00]} 1/2-1/2


[Site "https://www.chess.com"]

[Event "Titled Tuesday Blitz May 16 Early 2023"]
[White "Bachmann, Axel"]
[Black "Hirneise, Jens"]
[WhiteFideId "3700488"]
[BlackFideId "24614734"]
[WhiteElo "2605"]
[BlackElo "2345"]
[Result "0-1"]
[Round "01"]
[TimeControl "180+2"]
[Date "2023.05.16"]
[WhiteClock "0:00:00"]
[BlackClock "0:00:32"]

1. e4 {[%clk 0:02:56]}  c6 {[%clk 0:02:56]} 2. d4 {[%clk 0:02:52]}  d5 {[%clk 0:02:56]} 3. f3 {[%clk 0:02:53]}  Qb6 {[%clk 0:02:53]} 4. Nc3 {[%clk 0:02:52]}  dxe4 {[%clk 0:02:47]} 5. fxe4 {[%clk 0:02:00]}  e5 {[%clk 0:02:45]} 6. Nf3 {[%clk 0:01:33]}  exd4 {[%clk 0:02:38]} 7. Nxd4 {[%clk 0:01:33]}  Bc5 {[%clk 0:02:31]} 8. Na4 {[%clk 0:01:31]}  Qa5+ {[%clk 0:02:27]} 9. c3 {[%clk 0:01:31]}  Bxd4 {[%clk 0:02:17]} 10. Qxd4 {[%clk 0:01:31]}  Nf6 {[%clk 0:02:17]} 11. e5 {[%clk 0:01:10]}  Ng4 {[%clk 0:02:02]} 12. Nc5 {[%clk 0:01:10]}  O-O {[%clk 0:01:48]} 13. Bf4 {[%clk 0:01:02]}  Rd8 {[%clk 0:01:42]} 14. Qc4 {[%clk 0:00:49]}  b6 {[%clk 0:01:27]} 15. Nb3 {[%clk 0:00:26]}  Qd5 {[%clk 0:01:19]} 16. Qxd5 {[%clk 0:00:25]}  Rxd5 {[%clk 0:01:19]} 17. Bc4 {[%clk 0:00:26]}  Rd8 {[%clk 0:01:01]} 18. h3 {[%clk 0:00:18]}  Nh6 {[%clk 0:00:58]} 19. O-O {[%clk 0:00:18]}  b5 {[%clk 0:00:54]} 20. Be2 {[%clk 0:00:13]}  Nf5 {[%clk 0:00:51]} 21. Rad1 {[%clk 0:00:11]}  Re8 {[%clk 0:00:50]} 22. g4 {[%clk 0:00:09]}  Ne7 {[%clk 0:00:49]} 23. Bf3 {[%clk 0:00:06]}  Be6 {[%clk 0:00:49]} 24. Nd4 {[%clk 0:00:05]}  Bd5 {[%clk 0:00:46]} 25. Bg5 {[%clk 0:00:02]}  Bxf3 {[%clk 0:00:43]} 26. Rxf3 {[%clk 0:00:03]}  Ng6 {[%clk 0:00:43]} 27. Bf4 {[%clk 0:00:02]}  a6 {[%clk 0:00:40]} 28. Bg3 {[%clk 0:00:02]}  c5 {[%clk 0:00:40]} 29. Nf5 {[%clk 0:00:02]}  Nc6 {[%clk 0:00:38]} 30. Nd6 {[%clk 0:00:03]}  Re7 {[%clk 0:00:35]} 31. Nf5 {[%clk 0:00:03]}  Re6 {[%clk 0:00:32]} 32. Rd6 {[%clk 0:00:03]}  Ncxe5 {[%clk 0:00:31]} 33. Bxe5 {[%clk 0:00:03]}  Nxe5 {[%clk 0:00:32]} 34. Rxe6 {[%clk 0:00:00]}  Nxf3+ {[%clk 0:00:32]} 0-1


[Site "https://www.chess.com"]

[Event "Titled Tuesday Blitz May 16 Early 2023"]
[White "Pakleza, Zbigniew"]
[Black "Rodchenkov, Sergey D."]
[WhiteFideId "1119290"]
[BlackFideId "4168712"]
[WhiteElo "2410"]
[BlackElo "2277"]
[Result "0-1"]
[Round "01"]
[TimeControl "180+2"]
[Date "2023.05.16"]
[WhiteClock "0:00:00"]
[BlackClock "0:00:25"]

1. d4 {[%clk 0:03:00]}  d5 {[%clk 0:02:59]} 2. Bf4 {[%clk 0:03:00]}  Nf6 {[%clk 0:03:00]} 3. e3 {[%clk 0:03:00]}  e6 {[%clk 0:03:00]} 4. Nd2 {[%clk 0:03:00]}  Bd6 {[%clk 0:03:01]} 5. Bg3 {[%clk 0:03:01]}  O-O {[%clk 0:03:01]} 6. Ngf3 {[%clk 0:03:02]}  c5 {[%clk 0:03:01]} 7. c3 {[%clk 0:03:02]}  Qc7 {[%clk 0:03:01]} 8. Be2 {[%clk 0:03:02]}  Nbd7 {[%clk 0:03:01]} 9. c4 {[%clk 0:03:03]}  Bxg3 {[%clk 0:02:41]} 10. hxg3 {[%clk 0:03:02]}  cxd4 {[%clk 0:02:38]} 11. Nxd4 {[%clk 0:03:03]}  e5 {[%clk 0:02:31]} 12. Nb5 {[%clk 0:02:54]}  Qb6 {[%clk 0:02:31]} 13. cxd5 {[%clk 0:02:36]}  Nxd5 {[%clk 0:02:26]} 14. Qb3 {[%clk 0:02:22]}  N7f6 {[%clk 0:02:17]} 15. Nc4 {[%clk 0:02:17]}  Qe6 {[%clk 0:02:10]} 16. a4 {[%clk 0:02:04]}  Bd7 {[%clk 0:02:04]} 17. O-O {[%clk 0:01:59]}  a6 {[%clk 0:01:50]} 18. Nbd6 {[%clk 0:01:44]}  b5 {[%clk 0:01:30]} 19. axb5 {[%clk 0:01:45]}  axb5 {[%clk 0:01:31]} 20. Nxb5 {[%clk 0:01:40]}  Rab8 {[%clk 0:01:27]} 21. Nca3 {[%clk 0:01:27]}  Nf4 {[%clk 0:01:16]} 22. Bc4 {[%clk 0:01:14]}  Ne2+ {[%clk 0:01:14]} 23. Kh1 {[%clk 0:01:15]}  Qg4 {[%clk 0:01:06]} 24. Bxe2 {[%clk 0:00:47]}  Qxe2 {[%clk 0:01:06]} 25. Rfe1 {[%clk 0:00:16]}  Qh5+ {[%clk 0:00:59]} 26. Kg1 {[%clk 0:00:16]}  Ng4 {[%clk 0:00:51]} 27. Rad1 {[%clk 0:00:10]}  Bxb5 {[%clk 0:00:21]} 28. Nxb5 {[%clk 0:00:09]}  Qh2+ {[%clk 0:00:21]} 29. Kf1 {[%clk 0:00:09]}  Qh1+ {[%clk 0:00:22]} 30. Ke2 {[%clk 0:00:09]}  Qxg2 {[%clk 0:00:23]} 31. Rf1 {[%clk 0:00:04]}  e4 {[%clk 0:00:22]} 32. Rd4 {[%clk 0:00:02]}  Qf3+ {[%clk 0:00:22]} 33. Kd2 {[%clk 0:00:02]}  Nxe3 {[%clk 0:00:22]} 34. Qxe3 {[%clk 0:00:02]}  Qxe3+ {[%clk 0:00:22]} 35. Kxe3 {[%clk 0:00:02]}  Rxb5 {[%clk 0:00:22]} 36. Rxe4 {[%clk 0:00:02]}  g6 {[%clk 0:00:21]} 37. Kf3 {[%clk 0:00:02]}  Rb3+ {[%clk 0:00:21]} 38. Re3 {[%clk 0:00:02]}  Rxb2 {[%clk 0:00:21]} 39. Kg2 {[%clk 0:00:03]}  Rfb8 {[%clk 0:00:22]} 40. Rfe1 {[%clk 0:00:03]}  Kg7 {[%clk 0:00:22]} 41. R1e2 {[%clk 0:00:04]}  R2b5 {[%clk 0:00:22]} 42. Re5 {[%clk 0:00:04]}  Rb1 {[%clk 0:00:22]} 43. Re8 {[%clk 0:00:04]}  R8b7 {[%clk 0:00:21]} 44. Re1 {[%clk 0:00:04]}  R1b6 {[%clk 0:00:20]} 45. R8e7 {[%clk 0:00:05]}  Rxe7 {[%clk 0:00:19]} 46. Rxe7 {[%clk 0:00:04]}  Rf6 {[%clk 0:00:20]} 47. Re3 {[%clk 0:00:04]}  h5 {[%clk 0:00:20]} 48. Rc3 {[%clk 0:00:05]}  Rb6 {[%clk 0:00:21]} 49. Rc4 {[%clk 0:00:05]}  Rb2 {[%clk 0:00:22]} 50. Rc5 {[%clk 0:00:06]}  f6 {[%clk 0:00:23]} 51. Rc7+ {[%clk 0:00:06]}  Kh6 {[%clk 0:00:23]} 52. Rc6 {[%clk 0:00:07]}  f5 {[%clk 0:00:24]} 53. Rc4 {[%clk 0:00:07]}  Kg5 {[%clk 0:00:25]} 54. Ra4 {[%clk 0:00:07]}  Re2 {[%clk 0:00:25]} 55. Rb4 {[%clk 0:00:07]}  Re4 {[%clk 0:00:26]} 56. Rb6 {[%clk 0:00:07]}  h4 {[%clk 0:00:27]} 57. Kh3 {[%clk 0:00:05]}  hxg3 {[%clk 0:00:27]} 58. fxg3 {[%clk 0:00:06]}  Re1 {[%clk 0:00:28]} 59. Rb4 {[%clk 0:00:05]}  Rh1+ {[%clk 0:00:28]} 60. Kg2 {[%clk 0:00:06]}  Rc1 {[%clk 0:00:29]} 61. Kh3 {[%clk 0:00:06]}  Rh1+ {[%clk 0:00:27]} 62. Kg2 {[%clk 0:00:07]}  Ra1 {[%clk 0:00:28]} 63. Kh3 {[%clk 0:00:07]}  Ra3 {[%clk 0:00:29]} 64. Rc4 {[%clk 0:00:06]}  Kh5 {[%clk 0:00:29]} 65. Rc5 {[%clk 0:00:06]}  Kh6 {[%clk 0:00:29]} 66. Rc6 {[%clk 0:00:06]}  f4 {[%clk 0:00:29]} 67. Kh4 {[%clk 0:00:04]}  Rxg3 {[%clk 0:00:24]} 68. Rf6 {[%clk 0:00:04]}  Rg1 {[%clk 0:00:22]} 69. Kh3 {[%clk 0:00:01]}  Kg5 {[%clk 0:00:22]} 70. Rf8 {[%clk 0:00:01]}  Rg3+ {[%clk 0:00:23]} 71. Kh2 {[%clk 0:00:01]}  Ra3 {[%clk 0:00:24]} 72. Rg8 {[%clk 0:00:01]}  Kf5 {[%clk 0:00:24]} 73. Rf8+ {[%clk 0:00:01]}  Kg4 {[%clk 0:00:25]} 74. Rc8 {[%clk 0:00:01]}  Ra2+ {[%clk 0:00:25]} 75. Rc2 {[%clk 0:00:00]}  Rxc2+ {[%clk 0:00:25]} 0-1


[Site "https://www.chess.com"]

[Event "Titled Tuesday Blitz May 16 Early 2023"]
[White "DubiousM0ves532"]
[Black "Pultinevicius, Paulius"]
[BlackFideId "12809390"]
[WhiteElo "2466"]
[BlackElo "2540"]
[Result "0-1"]
[Round "01"]
[TimeControl "180+2"]
[Date "2023.05.16"]
[WhiteClock "0:00:06"]
[BlackClock "0:00:42"]

1. Nf3 {[%clk 0:02:59]}  g6 {[%clk 0:02:52]} 2. d4 {[%clk 0:02:58]}  Nf6 {[%clk 0:02:49]} 3. Bf4 {[%clk 0:02:58]}  Bg7 {[%clk 0:02:49]} 4. e3 {[%clk 0:02:59]}  O-O {[%clk 0:02:50]} 5. h3 {[%clk 0:02:59]}  c5 {[%clk 0:02:50]} 6. c3 {[%clk 0:02:57]}  Qb6 {[%clk 0:02:49]} 7. Qc1 {[%clk 0:02:57]}  d6 {[%clk 0:02:46]} 8. Nbd2 {[%clk 0:02:56]}  Be6 {[%clk 0:02:43]} 9. Bc4 {[%clk 0:02:56]}  Bxc4 {[%clk 0:02:43]} 10. Nxc4 {[%clk 0:02:57]}  Qa6 {[%clk 0:02:43]} 11. b3 {[%clk 0:02:46]}  Nd5 {[%clk 0:02:38]} 12. Bg3 {[%clk 0:02:43]}  b5 {[%clk 0:02:37]} 13. Nb2 {[%clk 0:02:33]}  b4 {[%clk 0:02:37]} 14. c4 {[%clk 0:02:30]}  Nc3 {[%clk 0:02:37]} 15. Nd1 {[%clk 0:02:18]}  Ne4 {[%clk 0:02:30]} 16. Bh2 {[%clk 0:02:10]}  Nc6 {[%clk 0:02:30]} 17. O-O {[%clk 0:02:01]}  cxd4 {[%clk 0:02:27]} 18. exd4 {[%clk 0:02:00]}  Nxd4 {[%clk 0:02:28]} 19. Nxd4 {[%clk 0:02:00]}  Bxd4 {[%clk 0:02:29]} 20. Ne3 {[%clk 0:01:46]}  Bxa1 {[%clk 0:02:25]} 21. Qxa1 {[%clk 0:01:46]}  Nc3 {[%clk 0:02:22]} 22. a4 {[%clk 0:01:45]}  e5 {[%clk 0:02:09]} 23. f4 {[%clk 0:01:22]}  Rae8 {[%clk 0:01:58]} 24. fxe5 {[%clk 0:01:19]}  dxe5 {[%clk 0:01:58]} 25. Ng4 {[%clk 0:01:13]}  f6 {[%clk 0:01:50]} 26. Qe1 {[%clk 0:01:11]}  h5 {[%clk 0:01:44]} 27. Ne3 {[%clk 0:01:09]}  Qd6 {[%clk 0:01:39]} 28. Kh1 {[%clk 0:01:02]}  Qd3 {[%clk 0:01:37]} 29. Rf3 {[%clk 0:00:44]}  Qe4 {[%clk 0:01:38]} 30. Qf2 {[%clk 0:00:31]}  f5 {[%clk 0:01:31]} 31. Bg1 {[%clk 0:00:31]}  Rd8 {[%clk 0:01:25]} 32. Nd5 {[%clk 0:00:20]}  Nxd5 {[%clk 0:01:19]} 33. cxd5 {[%clk 0:00:21]}  Rxd5 {[%clk 0:01:11]} 34. Qxa7 {[%clk 0:00:20]}  Rd3 {[%clk 0:01:11]} 35. Qa6 {[%clk 0:00:17]}  Rd7 {[%clk 0:00:45]} 36. Qe6+ {[%clk 0:00:11]}  Rdf7 {[%clk 0:00:44]} 37. Qxg6+ {[%clk 0:00:11]}  Rg7 {[%clk 0:00:44]} 38. Qxh5 {[%clk 0:00:11]}  Qe2 {[%clk 0:00:42]} 39. Rf2 {[%clk 0:00:06]}  Qxh5 {[%clk 0:00:42]} 0-1


[Site "https://www.chess.com"]

[Event "Titled Tuesday Blitz May 16 Early 2023"]
[White "Molina, Roberto Junio Brito"]
[Black "Liu, Casper"]
[WhiteFideId "2109450"]
[BlackFideId "1454153"]
[WhiteElo "2376"]
[BlackElo "2221"]
[Result "1/2-1/2"]
[Round "01"]
[TimeControl "180+2"]
[Date "2023.05.16"]
[WhiteClock "0:01:49"]
[BlackClock "0:01:55"]

1. d4 {[%clk 0:03:00]}  c5 {[%clk 0:02:59]} 2. d5 {[%clk 0:03:00]}  g6 {[%clk 0:03:00]} 3. e4 {[%clk 0:03:00]}  Bg7 {[%clk 0:03:00]} 4. Nf3 {[%clk 0:03:00]}  d6 {[%clk 0:03:01]} 5. Be2 {[%clk 0:03:00]}  f5 {[%clk 0:03:01]} 6. exf5 {[%clk 0:02:57]}  Bxf5 {[%clk 0:03:01]} 7. Bd3 {[%clk 0:02:57]}  Nf6 {[%clk 0:02:56]} 8. Bxf5 {[%clk 0:02:56]}  gxf5 {[%clk 0:02:57]} 9. Nc3 {[%clk 0:02:55]}  O-O {[%clk 0:02:57]} 10. O-O {[%clk 0:02:54]}  Nbd7 {[%clk 0:02:49]} 11. Ng5 {[%clk 0:02:38]}  Qe8 {[%clk 0:02:50]} 12. Ne6 {[%clk 0:02:37]}  Qg6 {[%clk 0:02:50]} 13. Nxf8 {[%clk 0:02:34]}  Rxf8 {[%clk 0:02:51]} 14. Bf4 {[%clk 0:02:30]}  Nh5 {[%clk 0:02:51]} 15. Qf3 {[%clk 0:02:27]}  Ne5 {[%clk 0:02:51]} 16. Bxe5 {[%clk 0:02:26]}  dxe5 {[%clk 0:02:51]} 17. g3 {[%clk 0:02:15]}  e4 {[%clk 0:02:51]} 18. Qg2 {[%clk 0:02:09]}  Kh8 {[%clk 0:02:52]} 19. Rae1 {[%clk 0:02:07]}  Rg8 {[%clk 0:02:51]} 20. Kh1 {[%clk 0:02:08]}  Bxc3 {[%clk 0:02:45]} 21. bxc3 {[%clk 0:02:06]}  Nf4 {[%clk 0:02:46]} 22. Qg1 {[%clk 0:02:03]}  Nh3 {[%clk 0:02:46]} 23. Qg2 {[%clk 0:02:00]}  Nf4 {[%clk 0:02:47]} 24. Qg1 {[%clk 0:01:55]}  Nh3 {[%clk 0:01:55]} 25. Qg2 {[%clk 0:01:49]}  Nf4 {[%clk 0:01:55]} 1/2-1/2


[Site "https://www.chess.com"]

[Event "Titled Tuesday Blitz May 16 Early 2023"]
[White "Aydincelebi, Kagan"]
[Black "Jovic, Stanoje"]
[WhiteFideId "6361102"]
[BlackFideId "905020"]
[WhiteElo "2180"]
[BlackElo "2236"]
[Result "1/2-1/2"]
[Round "01"]
[TimeControl "180+2"]
[Date "2023.05.16"]
[WhiteClock "0:00:20"]
[BlackClock "0:00:05"]

1. e4 {[%clk 0:03:00]}  c6 {[%clk 0:02:59]} 2. d4 {[%clk 0:03:00]}  d5 {[%clk 0:02:59]} 3. exd5 {[%clk 0:03:01]}  cxd5 {[%clk 0:02:59]} 4. c4 {[%clk 0:03:02]}  Nf6 {[%clk 0:02:58]} 5. Nc3 {[%clk 0:03:02]}  Nc6 {[%clk 0:02:58]} 6. Bg5 {[%clk 0:03:02]}  dxc4 {[%clk 0:02:57]} 7. Bxc4 {[%clk 0:03:03]}  e6 {[%clk 0:02:57]} 8. Nf3 {[%clk 0:03:03]}  Be7 {[%clk 0:02:57]} 9. O-O {[%clk 0:03:03]}  O-O {[%clk 0:02:57]} 10. a3 {[%clk 0:03:01]}  a6 {[%clk 0:02:57]} 11. Qd3 {[%clk 0:03:00]}  b5 {[%clk 0:02:56]} 12. Ba2 {[%clk 0:03:00]}  Bb7 {[%clk 0:02:56]} 13. Rad1 {[%clk 0:03:00]}  Rc8 {[%clk 0:02:54]} 14. Rfe1 {[%clk 0:03:00]}  Na5 {[%clk 0:02:49]} 15. Ne5 {[%clk 0:02:58]}  Nd5 {[%clk 0:02:33]} 16. Bb1 {[%clk 0:02:38]}  g6 {[%clk 0:02:28]} 17. Bh6 {[%clk 0:02:38]}  Re8 {[%clk 0:02:19]} 18. Ne4 {[%clk 0:02:37]}  Nc4 {[%clk 0:02:11]} 19. Qf3 {[%clk 0:02:16]}  f5 {[%clk 0:02:02]} 20. Nc5 {[%clk 0:00:59]}  Nxe5 {[%clk 0:01:53]} 21. Rxe5 {[%clk 0:01:00]}  Bxc5 {[%clk 0:01:48]} 22. dxc5 {[%clk 0:01:00]}  Rxc5 {[%clk 0:01:35]} 23. Qg3 {[%clk 0:01:00]}  Qf6 {[%clk 0:01:28]} 24. Bg5 {[%clk 0:01:00]}  f4 {[%clk 0:01:20]} 25. Bxf6 {[%clk 0:00:44]}  fxg3 {[%clk 0:01:18]} 26. hxg3 {[%clk 0:00:42]}  Kf7 {[%clk 0:01:11]} 27. Bg5 {[%clk 0:00:42]}  Rec8 {[%clk 0:01:08]} 28. Rde1 {[%clk 0:00:42]}  R8c6 {[%clk 0:01:01]} 29. Kh2 {[%clk 0:00:42]}  Nf6 {[%clk 0:00:58]} 30. Rxc5 {[%clk 0:00:40]}  Rxc5 {[%clk 0:00:53]} 31. Bd2 {[%clk 0:00:38]}  Bd5 {[%clk 0:00:48]} 32. f3 {[%clk 0:00:38]}  Bb3 {[%clk 0:00:42]} 33. Bc3 {[%clk 0:00:31]}  Nd5 {[%clk 0:00:37]} 34. Bd4 {[%clk 0:00:31]}  Rc6 {[%clk 0:00:34]} 35. g4 {[%clk 0:00:32]}  Bc2 {[%clk 0:00:26]} 36. Rc1 {[%clk 0:00:32]}  Rc4 {[%clk 0:00:16]} 37. Be5 {[%clk 0:00:26]}  Bxb1 {[%clk 0:00:14]} 38. Rxb1 {[%clk 0:00:27]}  Rc2 {[%clk 0:00:14]} 39. Re1 {[%clk 0:00:26]}  g5 {[%clk 0:00:14]} 40. Kg3 {[%clk 0:00:25]}  a5 {[%clk 0:00:12]} 41. Bd4 {[%clk 0:00:21]}  a4 {[%clk 0:00:11]} 42. Rh1 {[%clk 0:00:20]}  Kg6 {[%clk 0:00:11]} 43. Re1 {[%clk 0:00:21]}  Kf7 {[%clk 0:00:11]} 44. Re5 {[%clk 0:00:22]}  h6 {[%clk 0:00:11]} 45. Re1 {[%clk 0:00:20]}  Rd2 {[%clk 0:00:11]} 46. Be5 {[%clk 0:00:19]}  Rc2 {[%clk 0:00:11]} 47. Rd1 {[%clk 0:00:19]}  Re2 {[%clk 0:00:10]} 48. Bd4 {[%clk 0:00:19]}  Rc2 {[%clk 0:00:09]} 49. Bf2 {[%clk 0:00:18]}  Rxb2 {[%clk 0:00:08]} 50. Rc1 {[%clk 0:00:19]}  Rb3 {[%clk 0:00:07]} 51. Bc5 {[%clk 0:00:19]}  Rc3 {[%clk 0:00:06]} 52. Rxc3 {[%clk 0:00:19]}  Nxc3 {[%clk 0:00:07]} 53. Kf2 {[%clk 0:00:19]}  Nd5 {[%clk 0:00:07]} 54. g3 {[%clk 0:00:19]}  e5 {[%clk 0:00:07]} 55. Ke2 {[%clk 0:00:19]}  Kg6 {[%clk 0:00:07]} 56. Kd3 {[%clk 0:00:19]}  h5 {[%clk 0:00:07]} 57. gxh5+ {[%clk 0:00:19]}  Kxh5 {[%clk 0:00:07]} 58. Ke4 {[%clk 0:00:20]}  Nc3+ {[%clk 0:00:07]} 59. Kxe5 {[%clk 0:00:21]}  g4 {[%clk 0:00:07]} 60. f4 {[%clk 0:00:21]}  Ne2 {[%clk 0:00:08]} 61. f5 {[%clk 0:00:16]}  Nxg3 {[%clk 0:00:07]} 62. f6 {[%clk 0:00:17]}  Kg6 {[%clk 0:00:07]} 63. Ke6 {[%clk 0:00:17]}  Nh5 {[%clk 0:00:05]} 64. f7 {[%clk 0:00:17]}  Ng7+ {[%clk 0:00:05]} 65. Ke7 {[%clk 0:00:18]}  Nf5+ {[%clk 0:00:05]} 66. Ke8 {[%clk 0:00:18]}  Ng7+ {[%clk 0:00:05]} 67. Ke7 {[%clk 0:00:18]}  Nf5+ {[%clk 0:00:05]} 68. Ke8 {[%clk 0:00:19]}  Ng7+ {[%clk 0:00:05]} 69. Ke7 {[%clk 0:00:20]} 1/2-1/2


[Site "https://www.chess.com"]

[Event "Titled Tuesday Blitz May 16 Early 2023"]
[White "Kravtsiv, Martyn"]
[Black "Rios Escobar, Adan"]
[WhiteFideId "14113147"]
[BlackFideId "3403645"]
[WhiteElo "2695"]
[BlackElo "2458"]
[Result "1-0"]
[Round "01"]
[TimeControl "180+2"]
[Date "2023.05.16"]
[WhiteClock "0:00:56"]
[BlackClock "0:00:00"]

1. e4 {[%clk 0:03:00]}  c5 {[%clk 0:02:59]} 2. Nf3 {[%clk 0:03:00]}  d6 {[%clk 0:02:55]} 3. Bb5+ {[%clk 0:02:59]}  Nd7 {[%clk 0:02:53]} 4. d4 {[%clk 0:02:59]}  cxd4 {[%clk 0:02:49]} 5. Qxd4 {[%clk 0:02:59]}  e5 {[%clk 0:02:41]} 6. Qd3 {[%clk 0:02:55]}  h6 {[%clk 0:02:33]} 7. O-O {[%clk 0:02:45]}  Nf6 {[%clk 0:02:32]} 8. Be3 {[%clk 0:02:32]}  a6 {[%clk 0:02:30]} 9. Bxd7+ {[%clk 0:02:31]}  Bxd7 {[%clk 0:02:29]} 10. c4 {[%clk 0:02:31]}  Rc8 {[%clk 0:02:19]} 11. Nc3 {[%clk 0:02:29]}  Be7 {[%clk 0:02:13]} 12. a4 {[%clk 0:02:20]}  b6 {[%clk 0:02:02]} 13. h3 {[%clk 0:02:18]}  Qc7 {[%clk 0:01:43]} 14. Nd2 {[%clk 0:02:16]}  Be6 {[%clk 0:01:22]} 15. Nd5 {[%clk 0:01:52]}  Bxd5 {[%clk 0:00:53]} 16. cxd5 {[%clk 0:01:50]}  Qb7 {[%clk 0:00:47]} 17. Nc4 {[%clk 0:01:50]}  Nd7 {[%clk 0:00:42]} 18. f4 {[%clk 0:01:46]}  O-O {[%clk 0:00:18]} 19. Rac1 {[%clk 0:01:44]}  Rc7 {[%clk 0:00:13]} 20. fxe5 {[%clk 0:01:44]}  Nxe5 {[%clk 0:00:13]} 21. Nxe5 {[%clk 0:01:44]}  dxe5 {[%clk 0:00:14]} 22. Rxc7 {[%clk 0:01:39]}  Qxc7 {[%clk 0:00:14]} 23. Qxa6 {[%clk 0:01:32]}  Bc5 {[%clk 0:00:13]} 24. Qd3 {[%clk 0:01:29]}  Rd8 {[%clk 0:00:10]} 25. Rc1 {[%clk 0:01:27]}  Bxe3+ {[%clk 0:00:09]} 26. Qxe3 {[%clk 0:01:28]}  Qa7 {[%clk 0:00:08]} 27. b3 {[%clk 0:01:26]}  Qa5 {[%clk 0:00:06]} 28. Kh2 {[%clk 0:01:05]}  Qb4 {[%clk 0:00:04]} 29. Rc4 {[%clk 0:01:04]}  Qa3 {[%clk 0:00:04]} 30. Qxb6 {[%clk 0:01:02]}  Rd6 {[%clk 0:00:03]} 31. Rc6 {[%clk 0:01:00]}  Rg6 {[%clk 0:00:02]} 32. Rxg6 {[%clk 0:00:58]}  fxg6 {[%clk 0:00:03]} 33. Qxg6 {[%clk 0:00:57]}  Qxb3 {[%clk 0:00:00]} 34. a5 {[%clk 0:00:56]} 1-0


[Site "https://www.chess.com"]

[Event "Titled Tuesday Blitz May 16 Early 2023"]
[White "Osinovsky, Stepan"]
[Black "Zemlyanskii, Ivan"]
[WhiteFideId "4157354"]
[BlackFideId "24249971"]
[WhiteElo "2222"]
[BlackElo "2421"]
[Result "0-1"]
[Round "01"]
[TimeControl "180+2"]
[Date "2023.05.16"]
[WhiteClock "0:00:00"]
[BlackClock "0:00:09"]

1. e4 {[%clk 0:02:54]}  Nc6 {[%clk 0:03:00]} 2. Nf3 {[%clk 0:02:43]}  d5 {[%clk 0:02:58]} 3. exd5 {[%clk 0:02:42]}  Qxd5 {[%clk 0:02:59]} 4. Nc3 {[%clk 0:02:42]}  Qd6 {[%clk 0:03:00]} 5. g3 {[%clk 0:02:22]}  Qe6+ {[%clk 0:02:34]} 6. Be2 {[%clk 0:02:15]}  Nf6 {[%clk 0:02:29]} 7. d4 {[%clk 0:02:15]}  Nb4 {[%clk 0:02:04]} 8. Nb5 {[%clk 0:01:58]}  Qb6 {[%clk 0:01:55]} 9. a3 {[%clk 0:01:53]}  Nbd5 {[%clk 0:01:52]} 10. c4 {[%clk 0:01:52]}  a6 {[%clk 0:01:51]} 11. Qa4 {[%clk 0:00:40]}  Bd7 {[%clk 0:01:39]} 12. Ne5 {[%clk 0:00:33]}  c6 {[%clk 0:00:48]} 13. Nxd7 {[%clk 0:00:25]}  Nxd7 {[%clk 0:00:46]} 14. Nd6+ {[%clk 0:00:16]}  exd6 {[%clk 0:00:46]} 15. cxd5 {[%clk 0:00:17]}  Be7 {[%clk 0:00:41]} 16. dxc6 {[%clk 0:00:16]}  bxc6 {[%clk 0:00:42]} 17. O-O {[%clk 0:00:16]}  O-O {[%clk 0:00:42]} 18. Bf3 {[%clk 0:00:15]}  Rac8 {[%clk 0:00:36]} 19. Be3 {[%clk 0:00:12]}  Nf6 {[%clk 0:00:28]} 20. d5 {[%clk 0:00:11]}  c5 {[%clk 0:00:24]} 21. b4 {[%clk 0:00:11]}  Qb5 {[%clk 0:00:18]} 22. Qxb5 {[%clk 0:00:10]}  axb5 {[%clk 0:00:19]} 23. bxc5 {[%clk 0:00:09]}  dxc5 {[%clk 0:00:20]} 24. Rab1 {[%clk 0:00:09]}  b4 {[%clk 0:00:18]} 25. axb4 {[%clk 0:00:08]}  cxb4 {[%clk 0:00:19]} 26. Rfd1 {[%clk 0:00:08]}  Rfd8 {[%clk 0:00:19]} 27. Bb6 {[%clk 0:00:06]}  Rd7 {[%clk 0:00:17]} 28. Ba5 {[%clk 0:00:06]}  Rb8 {[%clk 0:00:15]} 29. Kg2 {[%clk 0:00:04]}  Rb5 {[%clk 0:00:10]} 30. Ra1 {[%clk 0:00:00]}  Ra7 {[%clk 0:00:09]} 0-1


[Site "https://www.chess.com"]